[Event "EYCC Open-U18 2019"]
[Site "Bratislava"]
[Date "2019.08.04"]
[Round "3.18"]
[White "Kotau, Arseni"]
[Black "Ludvik, Tomas"]
[Result "1-0"]
[ECO "E81"]
[WhiteElo "2227"]
[BlackElo "2334"]
[Annotator "NA"]
[PlyCount "77"]
[EventDate "2019.08.02"]
[EventType "swiss"]
[EventCountry "SVK"]
[SourceTitle "playchess.com"]
[Source "ChessBase"]
[SourceQuality "1"]
[TimeControl "40/5400+30:1800+30"]

1. d4 {[%emt 0:00:00]} Nf6 {[%emt 0:00:00]} 2. c4 {[%emt 0:00:00]} g6 {[%emt 0:00:00]} 3. Nc3 {[%emt 0:00:00]} Bg7 {[%emt 0:00:00]} 4. e4 {[%emt 0:00:00]} d6 {[%emt 0:00:00]} 5. f3 {[%emt 0:00:00]} O-O {[%emt 0:00:03]} 6. Nge2 {[%emt 0:00:00]} c5 {[%emt 0:00:07]} 7. Be3 {[%emt 0:00:01]} Nc6 {[%emt 0:00:11]} 8. d5 {[%emt 0:00:28]} Ne5 {[%emt 0:00:10]} 9. Ng3 {[%emt 0:00:09]} h5 {[%emt 0:00:47]} 10. Be2 {[%emt 0:00:17]} h4 {[%emt 0:00:24]} 11. Nf1 {[%emt 0:00:36]} e6 {[%emt 0:00:49]} 12. Nd2 {[%emt 0:20:01]} exd5 {[%emt 0:00:31]} 13. cxd5 {[%emt 0:00:04]} a6 {[%emt 0:01:16]} 14. a4 {[%emt 0:00:12]} Bd7 {[%emt 0:01:08]} 15. O-O {[%emt 0:04:35]} h3 {[%emt 0:04:11]} 16. g4 {[%emt 0:06:53]} Qc8 {[%emt 0:09:48]} 17. a5 {[%emt 0:04:09]} Nh7 {[%emt 0:05:44]} 18. Na4 {[%emt 0:09:51]} Bxa4 {[%emt 0:03:33]} 19. Qxa4 {[%emt 0:00:26]} f5 {[%emt 0:06:26]} 20. gxf5 {[%emt 0:03:15]} gxf5 {[%emt 0:00:24]} 21. f4 {[%emt 0:00:18]} Ng6 {[%emt 0:06:58]} 22. Nc4 {[%emt 0:01:34]} Qc7 {[%emt 0:07:23]} 23. Bh5 {[%emt 0:05:08]} Ne7 {[%emt 0:09:17]} 24. e5 {[%emt 0:06:51]} Nxd5 {[%emt 0:01:09]} 25. exd6 {[%emt 0:01:30]} Qd8 {[%emt 0:05:15]} 26. Qb3 {[%emt 0:11:34]} Nxe3 {[%emt 0:07:31]} 27. Nxe3+ {[%emt 0:05:01]} Kh8 {[%emt 0:00:13]} 28. Nc4 {[%emt 0:11:16]} Qh4 {[%emt 0:02:04]} 29. Bg6 {[%emt 0:01:44]} Bd4+ {[%emt 0:12:22]} 30. Kh1 {[%emt 0:00:04]} Rf6 {[%emt 0:01:40]} 31. Qxb7 {[%emt 0:03:19]} Rxg6 {[%emt 0:03:15]} 32. Qxa8+ {[%emt 0:00:03]} Rg8 {[%emt 0:00:08]} 33. Qf3 {[%emt 0:00:33]} Rg4 {[%emt 0:06:08]} 34. Ne5 {[%emt 0:03:11]} Bxe5 {[%emt 0:05:09]} 35. fxe5 {[%emt 0:00:03]} Qg5 {[%emt 0:02:16]} 36. Rg1 {[%emt 0:02:32]} Qh5 {[%emt 0:00:57]} 37. Rxg4 {[%emt 0:00:34]} fxg4 {[%emt 0:00:05]} 38. Qa8+ {[%emt 0:00:17]} Kg7 {[%emt 0:00:06]} 39. d7 {[%emt 0:00:33]} 1-0

[Event "EYCC Open-U18 2019"]
[Site "Bratislava"]
[Date "2019.08.04"]
[Round "3.19"]
[White "Brinovec, David"]
[Black "Blohberger, Felix"]
[Result "0-1"]
[ECO "A45"]
[WhiteElo "2205"]
[BlackElo "2476"]
[Annotator "ChessBase"]
[PlyCount "84"]
[EventDate "2019.08.02"]
[EventType "swiss"]
[EventCountry "SVK"]
[SourceTitle "playchess.com"]
[Source "ChessBase"]
[SourceQuality "1"]
[TimeControl "40/5400+30:1800+30"]

1. d4 {[%emt 0:00:00]} Nf6 {[%emt 0:00:00]} 2. Nc3 {[%emt 0:00:00]} d5 {[%emt 0:00:00]} 3. Bf4 {[%emt 0:00:00]} c5 {[%emt 0:00:02]} 4. e3 {[%emt 0:00:00]} cxd4 {[%emt 0:00:15]} 5. exd4 {[%emt 0:00:00]} a6 {[%emt 0:00:10]} 6. Nf3 {[%emt 0:01:55]} Nc6 {[%emt 0:00:51]} 7. h3 {[%emt 0:04:41]} e6 {[%emt 0:05:33]} 8. Bd3 {[%emt 0:05:15]} Bd6 {[%emt 0:01:56]} 9. Qd2 {[%emt 0:03:43]} Qc7 {[%emt 0:07:25]} 10. Bxd6 {[%emt 0:15:23]} Qxd6 {[%emt 0:00:40]} 11. O-O {[%emt 0:01:30]} O-O {[%emt 0:08:18]} 12. Qe3 {[%emt 0:04:03]} Bd7 {[%emt 0:04:05]} 13. Ne5 {[%emt 0:07:00]} Qb4 {[%emt 0:07:33]} 14. Ne2 {[%emt 0:02:24]} Ne7 {[%emt 0:05:22]} 15. c3 {[%emt 0:12:43]} Qb6 {[%emt 0:05:31]} 16. Rab1 {[%emt 0:04:35]} Bb5 {[%emt 0:02:08]} 17. Bc2 {[%emt 0:02:25]} Qc7 {[%emt 0:06:47]} 18. Rfe1 {[%emt 0:02:42]} Bxe2 {[%emt 0:00:17]} 19. Rxe2 {[%emt 0:00:46]} Nd7 {[%emt 0:13:31]} 20. f4 {[%emt 0:03:10]} Rae8 {[%emt 0:02:03]} 21. Rf1 {[%emt 0:01:42]} Nf5 {[%emt 0:04:17]} 22. Qd3 {[%emt 0:03:55]} Nf6 {[%emt 0:01:21]} 23. Qf3 {[%emt 0:09:32]} Nd6 {[%emt 0:03:19]} 24. Rc1 {[%emt 0:11:03]} b5 {[%emt 0:01:40]} 25. b3 {[%emt 0:01:57]} Rc8 {[%emt 0:05:30]} 26. Bb1 {[%emt 0:00:22]} Qa7 {[%emt 0:01:15]} 27. a3 {[%emt 0:01:34]} a5 {[%emt 0:00:36]} 28. Qe3 {[%emt 0:01:09]} Rc7 {[%emt 0:02:15]} 29. g4 {[%emt 0:00:22]} Rfc8 {[%emt 0:07:05]} 30. g5 {[%emt 0:00:04]} Nfe4 {[%emt 0:00:20]} 31. Bxe4 {[%emt 0:00:27]} dxe4 {[%emt 0:00:25]} 32. Rec2 {[%emt 0:00:42]} a4 {[%emt 0:03:13]} 33. b4 {[%emt 0:00:40]} Qb7 {[%emt 0:00:30]} 34. Re2 {[%emt 0:00:42]} Qd5 {[%emt 0:00:52]} 35. c4 {[%emt 0:00:32]} bxc4 {[%emt 0:00:41]} 36. Rec2 {[%emt 0:00:31]} Nf5 {[%emt 0:00:48]} 37. Qc3 {[%emt 0:00:26]} Qxd4+ {[%emt 0:01:05]} 38. Qxd4 {[%emt 0:00:33]} Nxd4 {[%emt 0:00:05]} 39. b5 {[%emt 0:00:30]} Nxc2 {[%emt 0:00:14]} 40. Rxc2 {[%emt 0:00:00]} Rb8 {[%emt 0:00:00]} 41. Rd2 {[%emt 0:00:25]} c3 {[%emt 0:01:13]} 42. b6 {[%emt 0:00:10]} cxd2 {[%emt 0:00:07]} 0-1

[Event "EYCC Open-U18 2019"]
[Site "Bratislava"]
[Date "2019.08.04"]
[Round "3.20"]
[White "Erenberg, Ariel"]
[Black "Akdogan, Alperen"]
[Result "1/2-1/2"]
[ECO "E15"]
[WhiteElo "2442"]
[BlackElo "2193"]
[Annotator "NA"]
[PlyCount "62"]
[EventDate "2019.08.02"]
[EventType "swiss"]
[EventCountry "SVK"]
[SourceTitle "playchess.com"]
[Source "ChessBase"]
[SourceQuality "1"]
[TimeControl "40/5400+30:1800+30"]

1. d4 {[%emt 0:00:00]} Nf6 {[%emt 0:00:00]} 2. c4 {[%emt 0:00:00]} e6 {[%emt 0:00:00]} 3. Nf3 {[%emt 0:00:14]} b6 {[%emt 0:00:15]} 4. g3 {[%emt 0:00:28]} Ba6 {[%emt 0:00:41]} 5. b3 {[%emt 0:01:13]} Bb4+ {[%emt 0:00:44]} 6. Bd2 {[%emt 0:00:10]} Be7 {[%emt 0:00:17]} 7. Bg2 {[%emt 0:00:54]} c6 {[%emt 0:00:31]} 8. O-O {[%emt 0:01:57]} O-O {[%emt 0:00:59]} 9. Bc3 {[%emt 0:01:51]} d5 {[%emt 0:00:48]} 10. Nbd2 {[%emt 0:00:22]} Nbd7 {[%emt 0:00:33]} 11. Re1 {[%emt 0:00:52]} c5 {[%emt 0:04:26]} 12. e4 {[%emt 0:01:36]} Nxe4 {[%emt 0:04:09]} 13. Nxe4 {[%emt 0:00:08]} dxe4 {[%emt 0:00:07]} 14. Rxe4 {[%emt 0:00:57]} Bb7 {[%emt 0:01:17]} 15. Re3 {[%emt 0:09:21]} Bf6 {[%emt 0:02:38]} 16. Rc1 {[%emt 0:04:04]} cxd4 {[%emt 0:10:49]} 17. Bxd4 {[%emt 0:02:32]} Qc7 {[%emt 0:01:40]} 18. Bxf6 {[%emt 0:05:58]} Nxf6 {[%emt 0:01:10]} 19. Qc2 {[%emt 0:03:44]} Rfd8 {[%emt 0:03:19]} 20. Ne5 {[%emt 0:04:20]} Bxg2 {[%emt 0:02:41]} 21. Kxg2 {[%emt 0:02:31]} Rac8 {[%emt 0:03:18]} 22. Qb2 {[%emt 0:05:38]} Qb7+ {[%emt 0:10:09]} 23. Kg1 {[%emt 0:04:47]} Rd6 {[%emt 0:06:01]} 24. Re2 {[%emt 0:01:51]} Rcd8 {[%emt 0:09:21]} 25. Qc2 {[%emt 0:03:08]} Nd7 {[%emt 0:03:29]} 26. Nxd7 {[%emt 0:01:48]} Qxd7 {[%emt 0:00:24]} 27. b4 {[%emt 0:00:34]} Rd1+ {[%emt 0:08:04]} 28. Rxd1 {[%emt 0:01:13]} Qxd1+ {[%emt 0:00:04]} 29. Kg2 {[%emt 0:00:23]} h6 {[%emt 0:06:23]} 30. Qe4 {[%emt 0:07:19]} Qd3 {[%emt 0:03:02]} 31. c5 {[%emt 0:04:44]} Qxe4+ {[%emt 0:00:52]} 1/2-1/2

[Event "EYCC Open-U18 2019"]
[Site "Bratislava"]
[Date "2019.08.04"]
[Round "3.21"]
[White "Ghersinich, Enrico"]
[Black "Petriashvili, Nikoloz"]
[Result "0-1"]
[ECO "D81"]
[WhiteElo "2221"]
[BlackElo "2451"]
[Annotator "ChessBase"]
[PlyCount "124"]
[EventDate "2019.08.02"]
[EventType "swiss"]
[EventCountry "SVK"]
[SourceTitle "playchess.com"]
[Source "ChessBase"]
[SourceQuality "1"]
[TimeControl "40/5400+30:1800+30"]

1. d4 {[%emt 0:00:00]} Nf6 {[%emt 0:00:00]} 2. c4 {[%emt 0:00:00]} g6 {[%emt 0:00:00]} 3. Nc3 {[%emt 0:00:20]} d5 {[%emt 0:00:00]} 4. Qb3 {[%emt 0:01:04]} c6 {[%emt 0:06:41]} 5. e3 {[%emt 0:01:29]} Bg7 {[%emt 0:00:22]} 6. Nf3 {[%emt 0:00:21]} O-O {[%emt 0:00:17]} 7. Be2 {[%emt 0:00:45]} Qb6 {[%emt 0:06:23]} 8. Qxb6 {[%emt 0:00:56]} axb6 {[%emt 0:00:02]} 9. cxd5 {[%emt 0:00:10]} Nxd5 {[%emt 0:00:08]} 10. Nxd5 {[%emt 0:00:09]} cxd5 {[%emt 0:00:04]} 11. Bd2 {[%emt 0:03:37]} Nc6 {[%emt 0:00:48]} 12. O-O {[%emt 0:01:05]} Bd7 {[%emt 0:00:16]} 13. Rfc1 {[%emt 0:01:49]} Rfc8 {[%emt 0:00:14]} 14. Rc3 {[%emt 0:09:06]} Na5 {[%emt 0:10:13]} 15. Rac1 {[%emt 0:10:36]} Nc4 {[%emt 0:05:12]} 16. b3 {[%emt 0:00:41]} Nxd2 {[%emt 0:01:02]} 17. Rxc8+ {[%emt 0:00:11]} Bxc8 {[%emt 0:03:52]} 18. Nxd2 {[%emt 0:00:13]} Bd7 {[%emt 0:00:05]} 19. a4 {[%emt 0:07:37]} e6 {[%emt 0:02:04]} 20. g4 {[%emt 0:07:47]} Bf6 {[%emt 0:01:56]} 21. Kg2 {[%emt 0:06:13]} Kf8 {[%emt 0:01:53]} 22. Nb1 {[%emt 0:03:06]} Be7 {[%emt 0:01:02]} 23. Nd2 {[%emt 0:07:35]} g5 {[%emt 0:01:50]} 24. Nf3 {[%emt 0:00:24]} f6 {[%emt 0:01:09]} 25. Bd3 {[%emt 0:02:00]} h6 {[%emt 0:03:53]} 26. h4 {[%emt 0:03:34]} Rc8 {[%emt 0:04:21]} 27. Rxc8+ {[%emt 0:05:03]} Bxc8 {[%emt 0:00:01]} 28. hxg5 {[%emt 0:00:07]} hxg5 {[%emt 0:00:03]} 29. Ne1 {[%emt 0:02:04]} Kf7 {[%emt 0:02:23]} 30. f4 {[%emt 0:00:26]} gxf4 {[%emt 0:18:41]} 31. exf4 {[%emt 0:00:50]} Bd6 {[%emt 0:06:16]} 32. f5 {[%emt 0:04:52]} Kg7 {[%emt 0:00:27]} 33. Kf3 {[%emt 0:04:01]} Kh6 {[%emt 0:01:54]} 34. Nc2 {[%emt 0:00:34]} e5 {[%emt 0:05:01]} 35. Be2 {[%emt 0:01:36]} Bd7 {[%emt 0:00:57]} 36. Ke3 {[%emt 0:07:04]} Kg5 {[%emt 0:02:22]} 37. Ne1 {[%emt 0:00:18]} e4 {[%emt 0:03:14]} 38. Ng2 {[%emt 0:03:01]} Ba3 {[%emt 0:01:12]} 39. Kd2 {[%emt 0:04:50]} Bb2 {[%emt 0:00:10]} 40. Ke3 {[%emt 0:00:00]} Bc1+ {[%emt 0:00:00]} 41. Kf2 {[%emt 0:00:49]} Bb2 {[%emt 0:08:39]} 42. Ke3 {[%emt 0:00:20]} Bc3 {[%emt 0:00:53]} 43. Nf4 {[%emt 0:01:43]} Bd2+ {[%emt 0:01:50]} 44. Kxd2 {[%emt 0:00:07]} Kxf4 {[%emt 0:00:01]} 45. Bd1 {[%emt 0:01:38]} b5 {[%emt 0:00:28]} 46. a5 {[%emt 0:02:09]} b4 {[%emt 0:00:14]} 47. Be2 {[%emt 0:00:05]} Bc6 {[%emt 0:00:04]} 48. Ke1 {[%emt 0:02:00]} e3 {[%emt 0:06:06]} 49. Kf1 {[%emt 0:06:38]} Be8 {[%emt 0:00:36]} 50. Kg2 {[%emt 0:03:48]} Ke4 {[%emt 0:00:03]} 51. Kg3 {[%emt 0:00:57]} Kxd4 {[%emt 0:06:15]} 52. Kf4 {[%emt 0:01:48]} Bf7 {[%emt 0:01:19]} 53. Bf1 {[%emt 0:08:54]} Kc3 {[%emt 0:00:21]} 54. Kxe3 {[%emt 0:00:15]} d4+ {[%emt 0:00:42]} 55. Kf4 {[%emt 0:02:09]} d3 {[%emt 0:00:47]} 56. g5 {[%emt 0:00:59]} fxg5+ {[%emt 0:00:57]} 57. Ke5 {[%emt 0:00:05]} d2 {[%emt 0:00:27]} 58. Be2 {[%emt 0:00:06]} Bxb3 {[%emt 0:00:15]} 59. f6 {[%emt 0:00:12]} Bg8 {[%emt 0:00:12]} 60. Kd6 {[%emt 0:01:13]} b3 {[%emt 0:00:05]} 61. a6 {[%emt 0:00:35]} bxa6 {[%emt 0:00:13]} 62. Ke7 {[%emt 0:00:16]} b2 {[%emt 0:00:32]} 0-1

[Event "EYCC Open-U18 2019"]
[Site "Bratislava"]
[Date "2019.08.04"]
[Round "3.22"]
[White "Chatzieleftheriou, Andreas"]
[Black "Travadon, Loic"]
[Result "0-1"]
[ECO "B20"]
[WhiteElo "2208"]
[BlackElo "2403"]
[Annotator "NA"]
[PlyCount "92"]
[EventDate "2019.08.02"]
[EventType "swiss"]
[EventCountry "SVK"]
[SourceTitle "playchess.com"]
[Source "ChessBase"]
[SourceQuality "1"]
[TimeControl "40/5400+30:1800+30"]

1. e4 {[%emt 0:00:00]} c5 {[%emt 0:00:00]} 2. Be2 {[%emt 0:00:00]} Nc6 {[%emt 0:00:00]} 3. d3 {[%emt 0:00:00]} g6 {[%emt 0:00:54]} 4. f4 {[%emt 0:00:16]} Bg7 {[%emt 0:00:15]} 5. Nf3 {[%emt 0:00:12]} e6 {[%emt 0:00:48]} 6. O-O {[%emt 0:00:41]} Nge7 {[%emt 0:01:55]} 7. c3 {[%emt 0:00:57]} d5 {[%emt 0:00:10]} 8. Be3 {[%emt 0:01:10]} d4 {[%emt 0:00:53]} 9. Bf2 {[%emt 0:06:00]} O-O {[%emt 0:00:38]} 10. Qd2 {[%emt 0:03:47]} b6 {[%emt 0:05:41]} 11. Na3 {[%emt 0:03:56]} Ba6 {[%emt 0:01:06]} 12. Nc2 {[%emt 0:03:50]} dxc3 {[%emt 0:00:59]} 13. bxc3 {[%emt 0:00:10]} Qc7 {[%emt 0:02:53]} 14. g3 {[%emt 0:07:07]} Na5 {[%emt 0:03:30]} 15. Rac1 {[%emt 0:19:55]} Rfd8 {[%emt 0:00:24]} 16. d4 {[%emt 0:02:29]} Bb7 {[%emt 0:06:54]} 17. Qe3 {[%emt 0:04:19]} cxd4 {[%emt 0:10:08]} 18. cxd4 {[%emt 0:00:57]} Qc6 {[%emt 0:02:13]} 19. d5 {[%emt 0:04:01]} exd5 {[%emt 0:00:57]} 20. Ncd4 {[%emt 0:00:13]} Qe8 {[%emt 0:00:37]} 21. e5 {[%emt 0:03:30]} Nc4 {[%emt 0:00:14]} 22. Qb3 {[%emt 0:03:03]} Rac8 {[%emt 0:03:04]} 23. Rfd1 {[%emt 0:01:45]} Nc6 {[%emt 0:01:18]} 24. Nxc6 {[%emt 0:01:50]} Bxc6 {[%emt 0:00:06]} 25. Nd4 {[%emt 0:00:10]} Ba4 {[%emt 0:00:08]} 26. Qb1 {[%emt 0:03:29]} Bxd1 {[%emt 0:00:06]} 27. Rxd1 {[%emt 0:00:07]} Rc5 {[%emt 0:08:18]} 28. h4 {[%emt 0:07:49]} Ra5 {[%emt 0:10:51]} 29. h5 {[%emt 0:01:57]} Ra3 {[%emt 0:03:57]} 30. hxg6 {[%emt 0:03:19]} hxg6 {[%emt 0:00:02]} 31. Nb5 {[%emt 0:02:49]} Ra5 {[%emt 0:00:08]} 32. Nd4 {[%emt 0:04:06]} Ra4 {[%emt 0:03:22]} 33. Kg2 {[%emt 0:04:09]} Ra3 {[%emt 0:01:30]} 34. Rh1 {[%emt 0:03:41]} Ne3+ {[%emt 0:03:45]} 35. Bxe3 {[%emt 0:01:12]} Rxe3 {[%emt 0:00:02]} 36. Qg1 {[%emt 0:00:37]} Re4 {[%emt 0:01:13]} 37. Bb5 {[%emt 0:01:44]} Qe7 {[%emt 0:01:01]} 38. Bd3 {[%emt 0:00:54]} Qa3 {[%emt 0:00:36]} 39. Bxe4 {[%emt 0:01:36]} dxe4 {[%emt 0:00:05]} 40. Kh3 {[%emt 0:00:00]} Qa4 {[%emt 0:00:00]} 41. Ne2 {[%emt 0:02:45]} Rd3 {[%emt 0:01:50]} 42. Qg2 {[%emt 0:05:02]} Rd2 {[%emt 0:01:48]} 43. Re1 {[%emt 0:01:33]} Rxa2 {[%emt 0:00:48]} 44. Qf2 {[%emt 0:01:17]} Qd7+ {[%emt 0:00:10]} 45. Kg2 {[%emt 0:01:05]} Bf8 {[%emt 0:00:28]} 46. Qe3 {[%emt 0:00:55]} Qd3 {[%emt 0:00:05]} 0-1

[Event "EYCC Open-U18 2019"]
[Site "Bratislava"]
[Date "2019.08.04"]
[Round "3.23"]
[White "Mitsis, Georgios"]
[Black "Mirri, Pietro"]
[Result "1/2-1/2"]
[ECO "D37"]
[WhiteElo "2399"]
[BlackElo "2194"]
[Annotator "NA"]
[PlyCount "112"]
[EventDate "2019.08.02"]
[EventType "swiss"]
[EventCountry "SVK"]
[SourceTitle "playchess.com"]
[Source "ChessBase"]
[SourceQuality "1"]
[TimeControl "40/5400+30:1800+30"]

1. d4 {[%emt 0:00:00]} d5 {[%emt 0:00:00]} 2. Nf3 {[%emt 0:00:00]} Nf6 {[%emt 0:00:00]} 3. c4 {[%emt 0:00:00]} e6 {[%emt 0:00:00]} 4. Nc3 {[%emt 0:00:00]} Be7 {[%emt 0:00:00]} 5. Bf4 {[%emt 0:00:00]} O-O {[%emt 0:00:43]} 6. e3 {[%emt 0:00:13]} b6 {[%emt 0:01:17]} 7. Bd3 {[%emt 0:00:37]} Bb7 {[%emt 0:02:55]} 8. cxd5 {[%emt 0:00:28]} exd5 {[%emt 0:00:42]} 9. O-O {[%emt 0:01:15]} c5 {[%emt 0:04:17]} 10. Ne5 {[%emt 0:02:05]} Nc6 {[%emt 0:01:57]} 11. Qa4 {[%emt 0:24:42]} Nxe5 {[%emt 0:10:21]} 12. dxe5 {[%emt 0:06:21]} Nh5 {[%emt 0:01:32]} 13. Be2 {[%emt 0:08:11]} Nxf4 {[%emt 0:01:33]} 14. Qxf4 {[%emt 0:00:43]} Qd7 {[%emt 0:09:56]} 15. Bg4 {[%emt 0:09:20]} Qc6 {[%emt 0:02:08]} 16. Bf3 {[%emt 0:01:58]} Rad8 {[%emt 0:06:07]} 17. Rfd1 {[%emt 0:06:03]} Qe6 {[%emt 0:01:04]} 18. Nb5 {[%emt 0:01:16]} Qd7 {[%emt 0:02:51]} 19. a4 {[%emt 0:02:13]} a6 {[%emt 0:02:48]} 20. Nc3 {[%emt 0:00:04]} Qe6 {[%emt 0:02:45]} 21. Rd3 {[%emt 0:17:15]} f6 {[%emt 0:08:05]} 22. exf6 {[%emt 0:07:47]} Bxf6 {[%emt 0:02:20]} 23. Bg4 {[%emt 0:02:18]} Qc6 {[%emt 0:02:44]} 24. Qg3 {[%emt 0:00:15]} d4 {[%emt 0:03:51]} 25. Bf3 {[%emt 0:00:11]} Qc8 {[%emt 0:00:34]} 26. Bxb7 {[%emt 0:01:38]} Qxb7 {[%emt 0:00:05]} 27. exd4 {[%emt 0:01:48]} Bxd4 {[%emt 0:01:12]} 28. Rf1 {[%emt 0:00:22]} c4 {[%emt 0:05:42]} 29. Rd2 {[%emt 0:00:16]} b5 {[%emt 0:03:00]} 30. axb5 {[%emt 0:00:05]} axb5 {[%emt 0:00:04]} 31. Rfd1 {[%emt 0:02:46]} Qb6 {[%emt 0:01:38]} 32. Qh4 {[%emt 0:03:12]} Bf6 {[%emt 0:06:03]} 33. Qe4 {[%emt 0:00:05]} Bxc3 {[%emt 0:01:40]} 34. bxc3 {[%emt 0:00:27]} Rde8 {[%emt 0:00:46]} 35. Qd5+ {[%emt 0:00:16]} Kh8 {[%emt 0:00:08]} 36. g3 {[%emt 0:00:29]} h6 {[%emt 0:01:23]} 37. h4 {[%emt 0:01:26]} Qf6 {[%emt 0:02:24]} 38. Qxb5 {[%emt 0:01:37]} Qxc3 {[%emt 0:00:06]} 39. Qc5 {[%emt 0:00:11]} Rc8 {[%emt 0:04:23]} 40. Qa7 {[%emt 0:00:00]} Qf3 {[%emt 0:00:00]} 41. Rc1 {[%emt 0:02:34]} c3 {[%emt 0:15:24]} 42. Rd7 {[%emt 0:00:08]} Qg4 {[%emt 0:00:49]} 43. Qd4 {[%emt 0:00:52]} Qxd4 {[%emt 0:00:58]} 44. Rxd4 {[%emt 0:00:05]} Rf7 {[%emt 0:01:08]} 45. Rc2 {[%emt 0:00:09]} Kh7 {[%emt 0:01:33]} 46. Rd3 {[%emt 0:00:05]} Rfc7 {[%emt 0:00:07]} 47. Kf1 {[%emt 0:00:07]} Kg6 {[%emt 0:00:12]} 48. Ke2 {[%emt 0:00:45]} Kf5 {[%emt 0:01:42]} 49. Kf3 {[%emt 0:00:32]} Rc5 {[%emt 0:02:13]} 50. Re3 {[%emt 0:00:27]} h5 {[%emt 0:01:59]} 51. Re7 {[%emt 0:00:15]} R8c7 {[%emt 0:00:22]} 52. Re3 {[%emt 0:00:09]} g5 {[%emt 0:01:43]} 53. hxg5 {[%emt 0:00:06]} Kxg5 {[%emt 0:00:03]} 54. Rd3 {[%emt 0:00:16]} Kf5 {[%emt 0:05:20]} 55. Re3 {[%emt 0:00:08]} Rc8 {[%emt 0:02:49]} 56. Ke2 {[%emt 0:00:13]} R8c7 {[%emt 0:02:01]} 1/2-1/2

[Event "EYCC Open-U18 2019"]
[Site "Bratislava"]
[Date "2019.08.04"]
[Round "3.24"]
[White "Gatineau, Yovann"]
[Black "Brozyna, Mateusz"]
[Result "1-0"]
[ECO "D00"]
[WhiteElo "2364"]
[BlackElo "2258"]
[Annotator "NA"]
[PlyCount "57"]
[EventDate "2019.08.02"]
[EventType "swiss"]
[EventCountry "SVK"]
[SourceTitle "playchess.com"]
[Source "ChessBase"]
[SourceQuality "1"]
[TimeControl "40/5400+30:1800+30"]

1. d4 {[%emt 0:00:00]} d5 {[%emt 0:00:00]} 2. Bf4 {[%emt 0:00:00]} Nf6 {[%emt 0:00:03]} 3. e3 {[%emt 0:00:00]} e6 {[%emt 0:00:42]} 4. Nf3 {[%emt 0:00:00]} Bd6 {[%emt 0:00:15]} 5. Bg3 {[%emt 0:00:00]} O-O {[%emt 0:00:35]} 6. Nbd2 {[%emt 0:00:24]} c5 {[%emt 0:00:20]} 7. c3 {[%emt 0:00:09]} Nc6 {[%emt 0:01:22]} 8. Bd3 {[%emt 0:00:06]} b6 {[%emt 0:01:32]} 9. e4 {[%emt 0:00:06]} dxe4 {[%emt 0:01:38]} 10. Nxe4 {[%emt 0:00:05]} Be7 {[%emt 0:05:50]} 11. Qe2 {[%emt 0:08:17]} Bb7 {[%emt 0:13:57]} 12. dxc5 {[%emt 0:04:49]} bxc5 {[%emt 0:00:22]} 13. Rd1 {[%emt 0:05:50]} Qb6 {[%emt 0:02:55]} 14. O-O {[%emt 0:11:06]} Rad8 {[%emt 0:05:33]} 15. Rfe1 {[%emt 0:13:29]} Kh8 {[%emt 0:16:01]} 16. h4 {[%emt 0:07:42]} Na5 {[%emt 0:08:33]} 17. Nxf6 {[%emt 0:10:16]} gxf6 {[%emt 0:04:16]} 18. Bb1 {[%emt 0:06:36]} Rxd1 {[%emt 0:02:24]} 19. Rxd1 {[%emt 0:01:59]} Rd8 {[%emt 0:01:12]} 20. Re1 {[%emt 0:11:01]} Bd6 {[%emt 0:08:48]} 21. Qd3 {[%emt 0:05:07]} f5 {[%emt 0:00:12]} 22. Ne5 {[%emt 0:00:27]} Be4 {[%emt 0:19:06]} 23. Qe3 {[%emt 0:04:30]} Qc7 {[%emt 0:02:43]} 24. Qg5 {[%emt 0:00:55]} Nc6 {[%emt 0:02:02]} 25. Qf6+ {[%emt 0:03:40]} Kg8 {[%emt 0:00:07]} 26. Rxe4 {[%emt 0:00:25]} fxe4 {[%emt 0:01:03]} 27. Nxc6 {[%emt 0:00:20]} Rd7 {[%emt 0:00:52]} 28. Ne5 {[%emt 0:00:51]} e3 {[%emt 0:00:58]} 29. fxe3 {[%emt 0:00:48]} 1-0